[Event "*** SCC Grand Prix: Titled Tuesday Blitz"]
[Site "Chess.com"]
[Date "2020.06.02"]
[Round "2"]
[White "mohssenbinaddi"]
[Black "1977Ivan"]
[Result "0-1"]
[WhiteElo "2060"]
[BlackElo "2601"]
[TimeControl "180+1"]
[EndTime "10:17:44 PDT"]
[Termination "1977Ivan won by resignation"]

1. Nf3 {[%clk 0:03:00.9]} 1... d6 {[%clk 0:02:58.4]} 2. g3 {[%clk 0:03:01.8]}
2... e5 {[%clk 0:02:58]} 3. Bg2 {[%clk 0:03:00.5]} 3... f5 {[%clk 0:02:58]} 4.
d3 {[%clk 0:03:00]} 4... Nf6 {[%clk 0:02:58]} 5. Bg5 {[%clk 0:03:00]} 5... Be7
{[%clk 0:02:58]} 6. O-O {[%clk 0:02:59.7]} 6... O-O {[%clk 0:02:58.5]} 7. Nbd2
{[%clk 0:02:58.5]} 7... Nc6 {[%clk 0:02:56.2]} 8. c3 {[%clk 0:02:58]} 8... Kh8
{[%clk 0:02:55.8]} 9. e4 {[%clk 0:02:57.4]} 9... f4 {[%clk 0:02:55.4]} 10. d4
{[%clk 0:02:48.8]} 10... Bg4 {[%clk 0:02:48.4]} 11. d5 {[%clk 0:02:47.8]} 11...
Nb8 {[%clk 0:02:44.8]} 12. Qb3 {[%clk 0:02:44.9]} 12... Nbd7 {[%clk 0:02:44.5]}
13. h3 {[%clk 0:02:40.8]} 13... Bh5 {[%clk 0:02:40.8]} 14. Bxf6 {[%clk
0:02:38.5]} 14... Bxf6 {[%clk 0:02:38.2]} 15. g4 {[%clk 0:02:38.7]} 15... Bg6
{[%clk 0:02:36]} 16. Ne1 {[%clk 0:02:38.6]} 16... a5 {[%clk 0:02:24.9]} 17. Nd3
{[%clk 0:02:35.5]} 17... b6 {[%clk 0:02:16.8]} 18. Bf3 {[%clk 0:02:27.2]} 18...
Bh4 {[%clk 0:02:10.8]} 19. Kg2 {[%clk 0:02:26.6]} 19... Qg5 {[%clk 0:02:08.4]}
20. Rg1 {[%clk 0:02:23.1]} 20... h6 {[%clk 0:02:01.2]} 21. Kf1 {[%clk 0:02:23]}
21... Nf6 {[%clk 0:01:55.4]} 22. Qc4 {[%clk 0:02:18.3]} 22... Ra7 {[%clk
0:01:53.2]} 23. a3 {[%clk 0:02:15.3]} 23... Nh7 {[%clk 0:01:49.6]} 24. Bd1
{[%clk 0:02:09]} 24... Qd8 {[%clk 0:01:49]} 25. Nf3 {[%clk 0:02:07.5]} 25... Be7
{[%clk 0:01:47.9]} 26. Rh1 {[%clk 0:01:54.7]} 26... Nf6 {[%clk 0:01:47.3]} 27.
Nd2 {[%clk 0:01:45.6]} 27... Nd7 {[%clk 0:01:38.1]} 28. Nf3 {[%clk 0:01:37.3]}
28... Nf6 {[%clk 0:01:26.7]} 29. Nd2 {[%clk 0:01:36]} 29... f3 {[%clk
0:01:24.5]} 30. Bxf3 {[%clk 0:01:31.7]} 30... Nh7 {[%clk 0:01:24.4]} 31. Bg2
{[%clk 0:01:23.6]} 31... Bh4 {[%clk 0:01:18.4]} 32. Ke2 {[%clk 0:01:14.6]} 32...
Ng5 {[%clk 0:01:16.6]} 33. Raf1 {[%clk 0:01:10.5]} 33... Qe8 {[%clk 0:01:08.5]}
34. Kd1 {[%clk 0:01:08.6]} 34... b5 {[%clk 0:01:03.9]} 35. Qc6 {[%clk
0:01:04.4]} 35... Qxc6 {[%clk 0:01:03.3]} 36. dxc6 {[%clk 0:01:04.5]} 36... Ra6
{[%clk 0:01:03.8]} 37. f4 {[%clk 0:01:01.8]} 37... exf4 {[%clk 0:00:22.2]} 38.
Nxf4 {[%clk 0:01:01.1]} 38... Kh7 {[%clk 0:00:22.5]} 39. Nxg6 {[%clk 0:00:51]}
39... Rxf1+ {[%clk 0:00:21.7]} 40. Rxf1 {[%clk 0:00:46.8]} 40... Kxg6 {[%clk
0:00:22.6]} 41. e5 {[%clk 0:00:34.2]} 41... dxe5 {[%clk 0:00:23.5]} 42. Kc2
{[%clk 0:00:19.5]} 42... a4 {[%clk 0:00:21.8]} 43. Ne4 {[%clk 0:00:19.4]} 43...
Ne6 {[%clk 0:00:20.8]} 44. Nc5 {[%clk 0:00:18]} 44... Nxc5 {[%clk 0:00:20.1]}
0-1

[Event "*** SCC Grand Prix: Titled Tuesday Blitz"]
[Site "Chess.com"]
[Date "2020.06.02"]
[Round "2"]
[White "GoltsevDmitry2000"]
[Black "Training_Day"]
[Result "1-0"]
[WhiteElo "2646"]
[BlackElo "2333"]
[TimeControl "180+1"]
[EndTime "10:17:45 PDT"]
[Termination "GoltsevDmitry2000 won by resignation"]

1. e4 {[%clk 0:03:00]} 1... e5 {[%clk 0:02:59.7]} 2. Nf3 {[%clk 0:03:00.5]} 2...
Nc6 {[%clk 0:03:00.1]} 3. Bb5 {[%clk 0:03:00.9]} 3... a6 {[%clk 0:03:00.3]} 4.
Ba4 {[%clk 0:03:00.9]} 4... Nf6 {[%clk 0:03:00.6]} 5. O-O {[%clk 0:03:01.2]}
5... Nxe4 {[%clk 0:03:00.4]} 6. d4 {[%clk 0:03:00.8]} 6... Be7 {[%clk
0:02:59.9]} 7. dxe5 {[%clk 0:02:59.5]} 7... Nc5 {[%clk 0:02:59.1]} 8. Bxc6
{[%clk 0:02:57.8]} 8... dxc6 {[%clk 0:03:00]} 9. Qxd8+ {[%clk 0:02:58.2]} 9...
Bxd8 {[%clk 0:03:00.4]} 10. Bg5 {[%clk 0:02:58.7]} 10... Bf5 {[%clk 0:02:52.7]}
11. c3 {[%clk 0:02:38.3]} 11... Ne6 {[%clk 0:02:38.9]} 12. Bxd8 {[%clk
0:02:31.2]} 12... Rxd8 {[%clk 0:02:39.8]} 13. Nbd2 {[%clk 0:02:30.5]} 13... h6
{[%clk 0:02:24.7]} 14. Nb3 {[%clk 0:02:30]} 14... c5 {[%clk 0:02:16.7]} 15. h3
{[%clk 0:02:24.8]} 15... b6 {[%clk 0:02:13.9]} 16. Rad1 {[%clk 0:02:22.6]} 16...
Ke7 {[%clk 0:02:09.2]} 17. Nc1 {[%clk 0:02:20.5]} 17... Bc2 {[%clk 0:02:04]} 18.
Rxd8 {[%clk 0:02:15.1]} 18... Rxd8 {[%clk 0:02:04.9]} 19. Re1 {[%clk 0:02:09.4]}
19... a5 {[%clk 0:01:58.2]} 20. g3 {[%clk 0:02:04.6]} 20... Ng5 {[%clk
0:01:33.9]} 21. Kg2 {[%clk 0:01:41.4]} 21... Ke6 {[%clk 0:01:09.7]} 22. h4
{[%clk 0:00:57.3]} 22... Nxf3 {[%clk 0:01:01.7]} 23. Kxf3 {[%clk 0:00:58]} 23...
Rd5 {[%clk 0:00:50.1]} 24. Kf4 {[%clk 0:00:35.3]} 24... Rd2 {[%clk 0:00:19.5]}
25. Re2 {[%clk 0:00:32.3]} 25... Rxe2 {[%clk 0:00:18.9]} 26. Nxe2 {[%clk
0:00:33.2]} 26... b5 {[%clk 0:00:17.4]} 27. b4 {[%clk 0:00:16.2]} 27... cxb4
{[%clk 0:00:13.6]} 28. cxb4 {[%clk 0:00:14.9]} 28... axb4 {[%clk 0:00:14.1]} 29.
Nd4+ {[%clk 0:00:15.3]} 29... Kd7 {[%clk 0:00:10.9]} 30. Nxc2 {[%clk 0:00:16.2]}
30... c5 {[%clk 0:00:09]} 31. Ke4 {[%clk 0:00:16.6]} 31... c4 {[%clk 0:00:05.3]}
32. Nxb4 {[%clk 0:00:16.2]} 1-0

[Event "*** SCC Grand Prix: Titled Tuesday Blitz"]
[Site "Chess.com"]
[Date "2020.06.02"]
[Round "2"]
[White "TheNextLevelFan"]
[Black "BJthechessgod"]
[Result "1-0"]
[WhiteElo "2377"]
[BlackElo "2050"]
[TimeControl "180+1"]
[EndTime "10:17:45 PDT"]
[Termination "TheNextLevelFan won by resignation"]

1. d4 {[%clk 0:03:00.9]} 1... Nf6 {[%clk 0:02:57.4]} 2. c4 {[%clk 0:03:00.2]}
2... g6 {[%clk 0:02:55.7]} 3. Nc3 {[%clk 0:02:59.5]} 3... d5 {[%clk 0:02:54.7]}
4. Bf4 {[%clk 0:02:57.5]} 4... Bg7 {[%clk 0:02:52.1]} 5. e3 {[%clk 0:02:56.8]}
5... O-O {[%clk 0:02:49.8]} 6. Nf3 {[%clk 0:02:54.7]} 6... c5 {[%clk 0:02:39.5]}
7. dxc5 {[%clk 0:02:53.9]} 7... Qa5 {[%clk 0:02:20.4]} 8. Rc1 {[%clk 0:02:54.3]}
8... Rd8 {[%clk 0:02:05.3]} 9. Qb3 {[%clk 0:02:48.8]} 9... Qxc5 {[%clk
0:01:52.5]} 10. Be2 {[%clk 0:02:29.1]} 10... Nc6 {[%clk 0:01:44.1]} 11. O-O
{[%clk 0:02:23.4]} 11... Na5 {[%clk 0:01:14.5]} 12. Qb5 {[%clk 0:02:23.5]} 12...
Qxb5 {[%clk 0:01:07.3]} 13. cxb5 {[%clk 0:02:24.4]} 13... Bf5 {[%clk 0:00:56.8]}
14. Bc7 {[%clk 0:02:22]} 14... Nc4 {[%clk 0:00:41.5]} 15. Bxd8 {[%clk
0:02:22.1]} 15... Rxd8 {[%clk 0:00:40.9]} 16. b3 {[%clk 0:02:22.6]} 16... Nd6
{[%clk 0:00:36]} 17. Rfd1 {[%clk 0:02:21]} 17... Nde4 {[%clk 0:00:29.8]} 18.
Nxe4 {[%clk 0:02:10.8]} 18... Nxe4 {[%clk 0:00:28]} 19. Nd4 {[%clk 0:02:11.3]}
19... Bd7 {[%clk 0:00:25.3]} 20. Rc7 {[%clk 0:02:09.6]} 20... e5 {[%clk
0:00:18.8]} 21. Nf3 {[%clk 0:02:08.6]} 21... Be6 {[%clk 0:00:14.5]} 22. Nd2
{[%clk 0:02:00.8]} 22... Nd6 {[%clk 0:00:06.7]} 23. e4 {[%clk 0:01:51]} 23... d4
{[%clk 0:00:05.8]} 24. Bc4 {[%clk 0:01:40.4]} 24... Bxc4 {[%clk 0:00:03.9]} 25.
Nxc4 {[%clk 0:01:36.5]} 25... Nxb5 {[%clk 0:00:02.4]} 26. Rxb7 {[%clk
0:01:36.8]} 26... Nc3 {[%clk 0:00:02.9]} 27. Re1 {[%clk 0:01:31.8]} 27... f5
{[%clk 0:00:03.5]} 28. f3 {[%clk 0:00:39.3]} 28... fxe4 {[%clk 0:00:03.3]} 29.
fxe4 {[%clk 0:00:39.7]} 29... Bh6 {[%clk 0:00:03.3]} 30. Nxe5 {[%clk 0:00:19.6]}
30... d3 {[%clk 0:00:03.7]} 31. Nxd3 {[%clk 0:00:19.7]} 31... Rxd3 {[%clk
0:00:04.3]} 32. e5 {[%clk 0:00:16.9]} 32... Be3+ {[%clk 0:00:04.7]} 33. Kh1
{[%clk 0:00:15.4]} 33... Bd4 {[%clk 0:00:04.1]} 34. e6 {[%clk 0:00:14.6]} 34...
Nd5 {[%clk 0:00:02.6]} 35. e7 {[%clk 0:00:14.3]} 35... Nxe7 {[%clk 0:00:03]} 36.
Rbxe7 {[%clk 0:00:14.3]} 36... Rd2 {[%clk 0:00:03.2]} 37. R7e2 {[%clk
0:00:14.1]} 37... Rd3 {[%clk 0:00:02.8]} 38. h3 {[%clk 0:00:14.1]} 38... Rc3
{[%clk 0:00:03]} 39. Rd1 {[%clk 0:00:13.6]} 39... Kf7 {[%clk 0:00:03.7]} 40.
Rxd4 {[%clk 0:00:13]} 40... Rc1+ {[%clk 0:00:04.4]} 41. Kh2 {[%clk 0:00:12.9]}
41... Ra1 {[%clk 0:00:04.5]} 42. Ra4 {[%clk 0:00:12.8]} 1-0

[Event "*** SCC Grand Prix: Titled Tuesday Blitz"]
[Site "Chess.com"]
[Date "2020.06.02"]
[Round "2"]
[White "VladimirBugayev"]
[Black "ajian"]
[Result "0-1"]
[WhiteElo "2151"]
[BlackElo "2401"]
[TimeControl "180+1"]
[EndTime "10:17:46 PDT"]
[Termination "ajian won by checkmate"]

1. e4 {[%clk 0:03:00.9]} 1... c5 {[%clk 0:02:59.6]} 2. a3 {[%clk 0:03:00.7]}
2... g6 {[%clk 0:02:56.8]} 3. h4 {[%clk 0:02:59.9]} 3... h5 {[%clk 0:02:52.9]}
4. Nc3 {[%clk 0:02:59.6]} 4... Bg7 {[%clk 0:02:52.6]} 5. Bc4 {[%clk 0:03:00.1]}
5... Nc6 {[%clk 0:02:51.8]} 6. d3 {[%clk 0:03:00.2]} 6... e6 {[%clk 0:02:51.2]}
7. Bg5 {[%clk 0:02:57]} 7... Nge7 {[%clk 0:02:46]} 8. Qd2 {[%clk 0:02:45.1]}
8... a6 {[%clk 0:02:44.2]} 9. a4 {[%clk 0:02:41.1]} 9... Nd4 {[%clk 0:02:36.4]}
10. Nge2 {[%clk 0:02:35.7]} 10... Qc7 {[%clk 0:02:22.9]} 11. Bxe7 {[%clk
0:02:21.1]} 11... Kxe7 {[%clk 0:02:22.8]} 12. f4 {[%clk 0:02:20.4]} 12... d6
{[%clk 0:02:15.3]} 13. O-O {[%clk 0:02:19.8]} 13... Bd7 {[%clk 0:02:10.9]} 14.
Rae1 {[%clk 0:02:05.5]} 14... b5 {[%clk 0:02:08.7]} 15. axb5 {[%clk 0:02:03.6]}
15... axb5 {[%clk 0:02:09.6]} 16. Bb3 {[%clk 0:02:00.6]} 16... b4 {[%clk
0:02:06]} 17. Nd1 {[%clk 0:01:52.1]} 17... Nxb3 {[%clk 0:01:47.1]} 18. cxb3
{[%clk 0:01:51.2]} 18... Bh6 {[%clk 0:01:21.1]} 19. Ne3 {[%clk 0:01:39.3]} 19...
Kf8 {[%clk 0:00:53.8]} 20. Rf3 {[%clk 0:01:25.7]} 20... Kg7 {[%clk 0:00:53]} 21.
Ref1 {[%clk 0:01:24]} 21... Rhf8 {[%clk 0:00:51.6]} 22. f5 {[%clk 0:01:16.5]}
22... exf5 {[%clk 0:00:51.1]} 23. exf5 {[%clk 0:01:15.5]} 23... Rae8 {[%clk
0:00:46.3]} 24. Nf4 {[%clk 0:01:10.7]} 24... Rxe3 {[%clk 0:00:23.5]} 25. Qxe3
{[%clk 0:01:06.6]} 25... Bxf5 {[%clk 0:00:23.5]} 26. Qf2 {[%clk 0:00:53.5]}
26... Bg4 {[%clk 0:00:22.2]} 27. Rg3 {[%clk 0:00:36.8]} 27... Re8 {[%clk
0:00:19.2]} 28. Nd5 {[%clk 0:00:33.2]} 28... Qb7 {[%clk 0:00:18.1]} 29. Qf6+
{[%clk 0:00:32.5]} 29... Kg8 {[%clk 0:00:16.3]} 30. Nf4 {[%clk 0:00:21.6]} 30...
Bg7 {[%clk 0:00:15.6]} 31. Qg5 {[%clk 0:00:21.1]} 31... Re5 {[%clk 0:00:14.3]}
32. Qd8+ {[%clk 0:00:18.7]} 32... Kh7 {[%clk 0:00:14.7]} 33. Qxd6 {[%clk
0:00:17.2]} 33... Rf5 {[%clk 0:00:11.9]} 34. Rxg4 {[%clk 0:00:13.6]} 34... hxg4
{[%clk 0:00:11.9]} 35. g3 {[%clk 0:00:13.4]} 35... Bd4+ {[%clk 0:00:11.8]} 36.
Kh2 {[%clk 0:00:11.5]} 36... Be5 {[%clk 0:00:11.7]} 37. Qxc5 {[%clk 0:00:07.5]}
37... Bxf4 {[%clk 0:00:10.7]} 38. Qc4 {[%clk 0:00:06.6]} 38... Bxg3+ {[%clk
0:00:09]} 39. Kg1 {[%clk 0:00:06.6]} 39... Rxf1+ {[%clk 0:00:08.4]} 40. Kxf1
{[%clk 0:00:06.7]} 40... Qf3+ {[%clk 0:00:09.3]} 41. Kg1 {[%clk 0:00:05.6]}
41... Qf2+ {[%clk 0:00:09.6]} 42. Kh1 {[%clk 0:00:05.5]} 42... Qh2# {[%clk
0:00:10.5]} 0-1

[Event "*** SCC Grand Prix: Titled Tuesday Blitz"]
[Site "Chess.com"]
[Date "2020.06.02"]
[Round "2"]
[White "tigra"]
[Black "allvim"]
[Result "1-0"]
[WhiteElo "2716"]
[BlackElo "2321"]
[TimeControl "180+1"]
[EndTime "10:17:47 PDT"]
[Termination "tigra won by checkmate"]

1. d4 {[%clk 0:03:00.9]} 1... Nf6 {[%clk 0:02:37.9]} 2. Bf4 {[%clk 0:02:57.7]}
2... d5 {[%clk 0:02:37.6]} 3. e3 {[%clk 0:02:57.6]} 3... c5 {[%clk 0:02:32.3]}
4. c3 {[%clk 0:02:56.1]} 4... Nc6 {[%clk 0:02:32.4]} 5. Nd2 {[%clk 0:02:55.2]}
5... Qb6 {[%clk 0:02:28.5]} 6. dxc5 {[%clk 0:02:53.9]} 6... Qxc5 {[%clk
0:02:28.8]} 7. Ngf3 {[%clk 0:02:52.4]} 7... e6 {[%clk 0:02:28.9]} 8. Bd3 {[%clk
0:02:51.9]} 8... Be7 {[%clk 0:02:25.2]} 9. a4 {[%clk 0:02:49.3]} 9... Qb6 {[%clk
0:02:17.4]} 10. b4 {[%clk 0:02:47.3]} 10... O-O {[%clk 0:02:16.6]} 11. O-O
{[%clk 0:02:46.5]} 11... Nh5 {[%clk 0:02:12.1]} 12. a5 {[%clk 0:02:31.9]} 12...
Qd8 {[%clk 0:02:09.9]} 13. Qb1 {[%clk 0:02:15.6]} 13... f5 {[%clk 0:02:05.5]}
14. a6 {[%clk 0:02:07.5]} 14... Nxf4 {[%clk 0:01:52.8]} 15. exf4 {[%clk
0:02:07.3]} 15... b6 {[%clk 0:01:45.2]} 16. Nb3 {[%clk 0:02:05.6]} 16... Bf6
{[%clk 0:01:43.3]} 17. Nbd4 {[%clk 0:02:05.2]} 17... Nxd4 {[%clk 0:01:35.9]} 18.
cxd4 {[%clk 0:01:56.3]} 18... Bd7 {[%clk 0:01:29.5]} 19. Re1 {[%clk 0:01:55.8]}
19... Rc8 {[%clk 0:01:28.9]} 20. Qb2 {[%clk 0:01:52]} 20... Qc7 {[%clk
0:01:25.5]} 21. Ne5 {[%clk 0:01:26.3]} 21... Bxe5 {[%clk 0:01:17.1]} 22. dxe5
{[%clk 0:01:27.2]} 22... Qc3 {[%clk 0:01:15.3]} 23. Qb1 {[%clk 0:01:23.2]} 23...
Qd4 {[%clk 0:00:49.6]} 24. g3 {[%clk 0:01:22.6]} 24... Rc3 {[%clk 0:00:48]} 25.
Rd1 {[%clk 0:01:21.4]} 25... g6 {[%clk 0:00:15.4]} 26. Bxf5 {[%clk 0:00:52.4]}
26... Qc4 {[%clk 0:00:14.7]} 27. Bd3 {[%clk 0:00:52.3]} 27... Qc7 {[%clk
0:00:14.6]} 28. h4 {[%clk 0:00:48]} 28... Rc8 {[%clk 0:00:12.6]} 29. Qb2 {[%clk
0:00:48.1]} 29... Kg7 {[%clk 0:00:11.4]} 30. Qe2 {[%clk 0:00:44.9]} 30... Be8
{[%clk 0:00:09.8]} 31. Qg4 {[%clk 0:00:43.6]} 31... Bf7 {[%clk 0:00:09.8]} 32.
h5 {[%clk 0:00:43.4]} 32... Qe7 {[%clk 0:00:08.6]} 33. Kg2 {[%clk 0:00:38.4]}
33... Qxb4 {[%clk 0:00:07.9]} 34. hxg6 {[%clk 0:00:33.6]} 34... hxg6 {[%clk
0:00:08.8]} 35. Qg5 {[%clk 0:00:19]} 35... Qf8 {[%clk 0:00:05.5]} 36. Rh1 {[%clk
0:00:17.8]} 36... Qd8 {[%clk 0:00:01.5]} 37. Qh6+ {[%clk 0:00:18]} 37... Kg8
{[%clk 0:00:01.8]} 38. Qh8# {[%clk 0:00:16.9]} 1-0

[Event "*** SCC Grand Prix: Titled Tuesday Blitz"]
[Site "Chess.com"]
[Date "2020.06.02"]
[Round "2"]
[White "UCantHandleDenker"]
[Black "Khvicha_Supatashvili"]
[Result "0-1"]
[WhiteElo "2469"]
[BlackElo "2717"]
[TimeControl "180+1"]
[EndTime "10:17:48 PDT"]
[Termination "Khvicha_Supatashvili won on time"]

1. Nf3 {[%clk 0:02:59.7]} 1... d5 {[%clk 0:02:59.1]} 2. g3 {[%clk 0:02:59]} 2...
Bg4 {[%clk 0:02:58.7]} 3. Bg2 {[%clk 0:02:59.4]} 3... e6 {[%clk 0:02:58.9]} 4.
O-O {[%clk 0:02:59.1]} 4... c6 {[%clk 0:02:58.9]} 5. d3 {[%clk 0:02:58.8]} 5...
Nf6 {[%clk 0:02:58.9]} 6. Nbd2 {[%clk 0:02:57.8]} 6... Nbd7 {[%clk 0:02:58]} 7.
h3 {[%clk 0:02:56.5]} 7... Bh5 {[%clk 0:02:57.4]} 8. Qe1 {[%clk 0:02:55.8]} 8...
Bc5 {[%clk 0:02:52.3]} 9. e4 {[%clk 0:02:54.5]} 9... dxe4 {[%clk 0:02:52.2]} 10.
dxe4 {[%clk 0:02:54]} 10... e5 {[%clk 0:02:52.3]} 11. Kh1 {[%clk 0:02:47.3]}
11... O-O {[%clk 0:02:51.3]} 12. a4 {[%clk 0:02:34.2]} 12... Re8 {[%clk
0:02:46.8]} 13. Nc4 {[%clk 0:02:31.1]} 13... Qc7 {[%clk 0:02:42.7]} 14. b4
{[%clk 0:02:25.5]} 14... Bf8 {[%clk 0:02:35.5]} 15. Bb2 {[%clk 0:02:23.9]} 15...
Bg6 {[%clk 0:02:35.5]} 16. Nh4 {[%clk 0:02:16.8]} 16... b5 {[%clk 0:02:28.7]}
17. Nxg6 {[%clk 0:02:15.5]} 17... hxg6 {[%clk 0:02:28.3]} 18. axb5 {[%clk
0:02:11]} 18... cxb5 {[%clk 0:02:27.8]} 19. Ne3 {[%clk 0:02:11.2]} 19... Nb6
{[%clk 0:02:26.4]} 20. Ra6 {[%clk 0:01:52.9]} 20... Rad8 {[%clk 0:02:19.5]} 21.
Qa1 {[%clk 0:01:24]} 21... Na4 {[%clk 0:02:16.4]} 22. Ra5 {[%clk 0:01:04.8]}
22... Rb8 {[%clk 0:01:31.8]} 23. c3 {[%clk 0:00:54.9]} 23... Red8 {[%clk
0:01:18.2]} 24. c4 {[%clk 0:00:26.5]} 24... Nxb2 {[%clk 0:01:16.4]} 25. Rxa7
{[%clk 0:00:20]} 25... Qc6 {[%clk 0:00:51.7]} 26. Qxb2 {[%clk 0:00:18.6]} 26...
bxc4 {[%clk 0:00:51.2]} 27. Qa2 {[%clk 0:00:15.3]} 27... Rxb4 {[%clk 0:00:49.4]}
28. Nd5 {[%clk 0:00:15.3]} 28... Nxd5 {[%clk 0:00:42.6]} 29. exd5 {[%clk
0:00:15.3]} 29... Qf6 {[%clk 0:00:40.8]} 30. f4 {[%clk 0:00:13.3]} 30... e4
{[%clk 0:00:39.4]} 31. Bxe4 {[%clk 0:00:11.1]} 31... Rb3 {[%clk 0:00:36.6]} 32.
Qa5 {[%clk 0:00:06.6]} 32... Rxg3 {[%clk 0:00:34.6]} 33. Bg2 {[%clk 0:00:06.4]}
33... Re8 {[%clk 0:00:30.4]} 34. Qc7 {[%clk 0:00:04.5]} 34... Re2 {[%clk
0:00:28.8]} 35. Ra8 {[%clk 0:00:03.6]} 35... Rgxg2 {[%clk 0:00:27.2]} 36. Rxf8+
{[%clk 0:00:03.1]} 36... Kxf8 {[%clk 0:00:21.8]} 37. Qc8+ {[%clk 0:00:02.7]}
37... Re8 {[%clk 0:00:21.8]} 38. Qc5+ {[%clk 0:00:02.1]} 38... Kg8 {[%clk
0:00:21.6]} 39. Kxg2 {[%clk 0:00:01.9]} 39... Re2+ {[%clk 0:00:20]} 40. Kf3
{[%clk 0:00:01.6]} 40... Qb2 {[%clk 0:00:17.7]} 41. Qc8+ {[%clk 0:00:01.4]}
41... Kh7 {[%clk 0:00:17.4]} 0-1

[Event "*** SCC Grand Prix: Titled Tuesday Blitz"]
[Site "Chess.com"]
[Date "2020.06.02"]
[Round "2"]
[White "LuckSlayeer"]
[Black "KaterynaLagno"]
[Result "0-1"]
[WhiteElo "2452"]
[BlackElo "2682"]
[TimeControl "180+1"]
[EndTime "10:17:48 PDT"]
[Termination "KaterynaLagno won by resignation"]

1. Nf3 {[%clk 0:03:00.9]} 1... Nf6 {[%clk 0:02:59.4]} 2. c4 {[%clk 0:03:00.7]}
2... g6 {[%clk 0:02:59.5]} 3. Nc3 {[%clk 0:03:01]} 3... Bg7 {[%clk 0:03:00]} 4.
e4 {[%clk 0:03:01.3]} 4... e5 {[%clk 0:02:58.6]} 5. d4 {[%clk 0:02:52]} 5...
exd4 {[%clk 0:02:57.4]} 6. Nxd4 {[%clk 0:02:52.9]} 6... O-O {[%clk 0:02:57.8]}
7. Be2 {[%clk 0:02:49.1]} 7... Re8 {[%clk 0:02:56]} 8. f3 {[%clk 0:02:48]} 8...
c6 {[%clk 0:02:56.7]} 9. O-O {[%clk 0:02:38.9]} 9... d5 {[%clk 0:02:56.7]} 10.
cxd5 {[%clk 0:02:00.4]} 10... cxd5 {[%clk 0:02:57.6]} 11. Bg5 {[%clk 0:02:00.4]}
11... dxe4 {[%clk 0:02:53.8]} 12. fxe4 {[%clk 0:01:06]} 12... h6 {[%clk
0:02:51.8]} 13. Bh4 {[%clk 0:00:21.1]} 13... g5 {[%clk 0:02:33.9]} 14. Ndb5
{[%clk 0:00:19.5]} 14... Na6 {[%clk 0:02:02.4]} 15. Qxd8 {[%clk 0:00:11.1]}
15... Rxd8 {[%clk 0:02:03.3]} 16. Bg3 {[%clk 0:00:07.8]} 16... Be6 {[%clk
0:01:58.7]} 17. Be5 {[%clk 0:00:04.1]} 17... Nd7 {[%clk 0:01:46.2]} 18. Bxg7
{[%clk 0:00:04.2]} 18... Kxg7 {[%clk 0:01:47.1]} 19. Rad1 {[%clk 0:00:04.1]}
19... Ne5 {[%clk 0:01:43.1]} 20. Nd6 {[%clk 0:00:03.7]} 20... Nb4 {[%clk
0:01:24.3]} 21. Nxb7 {[%clk 0:00:03]} 21... Rxd1 {[%clk 0:01:24.1]} 22. Rxd1
{[%clk 0:00:03.7]} 22... Nxa2 {[%clk 0:01:24.7]} 23. Nd5 {[%clk 0:00:02.5]}
23... Rb8 {[%clk 0:01:22.5]} 24. Nc5 {[%clk 0:00:02.3]} 24... Rxb2 {[%clk
0:01:21.4]} 25. Bf1 {[%clk 0:00:02]} 25... Bg4 {[%clk 0:01:20.3]} 26. Re1 {[%clk
0:00:01.8]} 26... a5 {[%clk 0:01:18.4]} 27. h3 {[%clk 0:00:01.7]} 27... Bxh3
{[%clk 0:01:15.6]} 28. Kh1 {[%clk 0:00:01.2]} 28... Bg4 {[%clk 0:01:14.4]} 29.
Ne3 {[%clk 0:00:01.6]} 29... a4 {[%clk 0:01:10.5]} 30. Nxg4 {[%clk 0:00:01.7]}
30... Nxg4 {[%clk 0:01:11.4]} 31. Bc4 {[%clk 0:00:01.9]} 31... Nc3 {[%clk
0:01:08]} 32. Nd3 {[%clk 0:00:02.1]} 32... Nf2+ {[%clk 0:01:06.2]} 33. Nxf2
{[%clk 0:00:01.8]} 33... Rxf2 {[%clk 0:01:07.1]} 34. Ra1 {[%clk 0:00:02.2]}
34... Rf4 {[%clk 0:01:05.2]} 35. Bd5 {[%clk 0:00:02]} 35... Nxd5 {[%clk
0:01:04.1]} 36. exd5 {[%clk 0:00:02.9]} 36... Rd4 {[%clk 0:01:04.2]} 37. d6
{[%clk 0:00:02.9]} 37... Rxd6 {[%clk 0:01:03.2]} 38. Rxa4 {[%clk 0:00:02.6]}
38... h5 {[%clk 0:01:03.9]} 39. Kh2 {[%clk 0:00:03.1]} 39... Kg6 {[%clk
0:01:04.2]} 40. Ra5 {[%clk 0:00:03.6]} 40... f6 {[%clk 0:01:04]} 41. g3 {[%clk
0:00:04.1]} 41... Rd4 {[%clk 0:01:02.7]} 42. Kg2 {[%clk 0:00:04.5]} 42... h4
{[%clk 0:01:02.9]} 43. gxh4 {[%clk 0:00:04.5]} 43... Rxh4 {[%clk 0:01:03.7]} 44.
Ra6 {[%clk 0:00:04.9]} 44... Rb4 {[%clk 0:01:03.5]} 45. Ra5 {[%clk 0:00:05.3]}
45... Kh5 {[%clk 0:00:58.5]} 46. Kh3 {[%clk 0:00:05.4]} 46... Rb3+ {[%clk
0:00:57.5]} 47. Kg2 {[%clk 0:00:05.9]} 47... Kh4 {[%clk 0:00:54.1]} 48. Ra6
{[%clk 0:00:04.8]} 48... f5 {[%clk 0:00:52.8]} 49. Ra5 {[%clk 0:00:04.4]} 49...
f4 {[%clk 0:00:52.7]} 50. Ra6 {[%clk 0:00:04.2]} 50... g4 {[%clk 0:00:51.7]} 51.
Rh6+ {[%clk 0:00:04.2]} 51... Kg5 {[%clk 0:00:50.9]} 52. Rh8 {[%clk 0:00:04.8]}
52... Rb2+ {[%clk 0:00:50.4]} 53. Kg1 {[%clk 0:00:04.6]} 53... f3 {[%clk
0:00:50.2]} 54. Rf8 {[%clk 0:00:03.5]} 54... Kh4 {[%clk 0:00:49.6]} 55. Kf1
{[%clk 0:00:03.4]} 55... Kg3 {[%clk 0:00:49.6]} 0-1